fUSD/lending_fUSD_20241121
["ID","MTS","AMOUNT","RATE_DAILY","PERIOD"]
[342965193,1732231832652,-738.08478571,0.000399,15]
[342965194,1732231832661,-434.0,0.0004,120]
[342965195,1732231832671,-377.8,0.000419,2]
[342965196,1732231832680,-1659.55224223,0.00042122,15]
[342965197,1732231832689,-738.08478569,0.00042122,15]
[342965198,1732231832698,-152.52,0.000425,33]
[342965199,1732231832707,-583.300353,0.000427,63]
[342965200,1732231832716,-8981.64627237,0.00042799,2]
[342965201,1732231832725,-445.20272027,0.000428,60]
[342965202,1732231832734,-1659.55224223,0.00044344,15]
[342965203,1732231832743,-738.08478569,0.00044344,15]
[342965204,1732231832752,-1000.0,0.00045,120]
[342965205,1732231832762,-152.0,0.00045006,3]
[342965206,1732231832771,-609.328,0.00045006,72]
[342965207,1732231832780,-239.614,0.0004519,120]
[342965208,1732231832789,-150.14,0.00045781,2]
[342965209,1732231832798,-210.0,0.0004594,2]
[342965210,1732231832807,-1766.89278258,0.0004594,30]
[342965211,1732231832816,-3748.0,0.0004594,2]
[342965212,1732231832825,-3514.0,0.0004594,2]
[342965213,1732231832835,-150.0,0.0004594,2]
[342965214,1732231832844,-151.0,0.0004594,2]
[342965215,1732231832853,-13657.0,0.0004594,2]
[342965216,1732231832866,-1162.0,0.0004594,2]
[342965218,1732231832875,-200.0,0.00046,120]
[342965220,1732231832884,-250.0,0.00046337,2]
[342965222,1732231832893,-1659.55224223,0.00046567,15]
[342965225,1732231832914,-200.0,0.00046643,2]
[342965227,1732231832923,-150.0,0.00046706,30]
[342965229,1732231832933,-250.0,0.00047036,120]
[342965231,1732231832943,-152.52,0.000473,42]
[342965233,1732231832952,-152.52,0.000473,42]
[342965235,1732231832962,-152.57,0.0004741,2]
[342965237,1732231832971,-2000.0,0.00047537,120]
[342965239,1732231832980,-500.0,0.00047537,120]
[342965241,1732231832989,-1750.78,0.00047593,2]
[342965242,1732231832998,-1000.0,0.00047603,8]
[342965244,1732231833007,-700.0,0.00047604,17]
[342965246,1732231833017,-700.0,0.00047604,17]
[342965248,1732231833027,-700.0,0.00047604,17]
[342965250,1732231833037,-700.0,0.00047604,17]
[342965252,1732231833046,-700.0,0.00047604,17]
[342965254,1732231833055,-700.0,0.00047604,17]
[342965256,1732231833064,-700.0,0.00047604,17]
[342965258,1732231833074,-700.0,0.00047604,17]
[342965279,1732231833267,-700.0,0.00047604,17]
[342965282,1732231833279,-700.0,0.00047604,17]
[342965284,1732231833288,-150.0,0.00047688,30]
[342965285,1732231833298,-495.40631427,0.00047879,2]
[342965288,1732231833307,-500.0,0.00047889,11]
[342965289,1732231833316,-500.0,0.00047889,11]
[342965291,1732231833326,-726.75,0.00047988,2]
[342965293,1732231833337,-4210.0,0.00048,117]
[342965295,1732231833346,-500.0,0.00048,120]
[342965297,1732231833356,-500.0,0.00048162,11]
[342965299,1732231833365,-500.0,0.00048162,11]
[342965301,1732231833375,-500.0,0.00048162,11]
[342965303,1732231833384,-500.0,0.00048162,11]
[342965305,1732231833394,-516.53008326,0.00048163,11]
[342965307,1732231833403,-1344.95,0.0004842,2]
[342965309,1732231833412,-500.0,0.00048436,11]
[342965311,1732231833422,-500.0,0.00048436,11]
[342965313,1732231833432,-239.578,0.0004849,120]
[342965315,1732231833441,-500.0,0.0004894,11]
[342965316,1732231833451,-3748.0,0.0004894,2]
[342965318,1732231833460,-3514.0,0.0004894,2]
[342965319,1732231833469,-150.0,0.0004894,2]
[342965320,1732231833478,-5135.178,0.0004894,2]
[342965321,1732231833488,-11000.0,0.00049,2]
[342965322,1732231833497,-7241.78747556,0.00049,30]
[342965323,1732231833506,-163.79,0.00049089,120]
[342965324,1732231833516,-200.0,0.00049223,2]
[342965325,1732231833526,-817.06,0.00049285,2]
[342965326,1732231833535,-700.0,0.00049315,37]
[342965327,1732231833545,-175.46,0.00049315,30]
[342965328,1732231833554,-500.0,0.00049334,2]
[342965329,1732231833563,-161.35,0.00049524,2]
[342965330,1732231833572,-159.8,0.0004956,2]
[342965331,1732231833582,-250.0,0.00049572,120]
[342965332,1732231833592,-15170.9,0.00049607,2]
[342965333,1732231833601,-406.54,0.00049635,2]
[342965334,1732231833610,-278.48,0.00049752,120]
[342965335,1732231833620,-13260.05875895,0.000498,120]
[342965336,1732231833629,-53854.00979124,0.000498,30]
[342965337,1732231833638,-184.26009206,0.0004996,40]
[342965338,1732231833647,-199.24242521,0.0004996,40]
[342965339,1732231833657,-1765.14650064,0.0004996,40]
[342965340,1732231833667,-500.0,0.0005,120]
[342965341,1732231833676,-800.0,0.0005,60]
[342965342,1732231833685,-385.66261705,0.0005,120]
[342965343,1732231833694,-500.0,0.0005,120]
[342965344,1732231833703,-150.0,0.0005,120]
[342965345,1732231833712,-1000.0,0.0005011,120]
[342965346,1732231833722,-151.94,0.00050187,120]
[342965347,1732231833731,-726.75,0.00050252,2]
[342965348,1732231833740,-1000.0,0.00050287,30]
[342965349,1732231833749,-23900.0,0.00050288,2]
[342965350,1732231833759,-1133.41,0.000507,7]
[342965351,1732231833768,-1913.0,0.00051,120]
[342965352,1732231833778,-200.0,0.00051,120]
[342965353,1732231833788,-154.24,0.00051136,2]
[342965354,1732231833797,-154.24,0.00051165,2]
[342965355,1732231833807,-150.0,0.00051177,120]
[342965356,1732231833817,-154.24,0.00051193,2]
[342965357,1732231833826,-154.24,0.00051221,2]
[342965358,1732231833837,-154.24,0.0005125,2]
[342965359,1732231833847,-313.38982444,0.00051259,23]
[342965360,1732231833856,-154.24,0.00051278,2]
[342965361,1732231833869,-154.24,0.00051307,2]
[342965362,1732231833878,-150.0,0.00051309,120]
[342965363,1732231833888,-154.24,0.00051335,2]
[342965364,1732231833897,-1000.0,0.00051358,30]
[342965365,1732231833908,-1098.72068902,0.00051359,30]
[342965366,1732231833917,-154.24,0.00051363,2]
[342965367,1732231833926,-154.24,0.00051392,2]
[342965368,1732231833936,-163.79,0.00051673,120]
[342965369,1732231833947,-12051.06139522,0.00051676,120]
[342965370,1732231833957,-239.619,0.0005179,120]
[342965371,1732231833966,-152.0,0.00051797,4]
[342965372,1732231833976,-167.62,0.00051832,2]
[342965373,1732231833985,-3120.0,0.000519,120]
[342965374,1732231833995,-898.073,0.0005194,120]
[342965375,1732231834004,-1637.623,0.0005194,120]
[342965376,1732231834013,-200.0,0.00052,120]
[342965377,1732231834023,-500.0,0.00052,120]
[342965378,1732231834033,-152.52,0.00052,51]
[342965379,1732231834042,-152.52,0.00052,51]
[342965380,1732231834051,-30000.0,0.000522,30]
[342965381,1732231834060,-1100.0,0.000524,19]
[342965382,1732231834070,-8473.07674702,0.00052407,14]
[342965383,1732231834080,-2811.26688178,0.00052409,14]
[342965384,1732231834091,-533.23868018,0.00052414,14]
[342965385,1732231834101,-3895.77653959,0.00052416,14]
[342965386,1732231834110,-1615.32039675,0.0005242,14]
[342965387,1732231834120,-533.23868018,0.00052422,14]
[342965388,1732231834129,-550.8575457,0.00052424,14]
[342965389,1732231834139,-8993.3674306,0.00052425,14]
[342965390,1732231834148,-1405.63344083,0.00052429,14]
[342965391,1732231834158,-1581.35061583,0.00052435,14]
[342965392,1732231834167,-3895.77653959,0.00052436,14]
[342965393,1732231834176,-1405.633441,0.00052437,14]
[342965394,1732231834186,-8993.36743061,0.00052437,14]
[342965395,1732231834195,-1566.05403289,0.00052438,14]
[342965396,1732231834205,-32283.88308419,0.00052445,14]
[342965397,1732231834215,-1615.32039675,0.00052446,14]
[342965398,1732231834224,-17986.73486118,0.00052446,14]
[342965399,1732231834233,-17986.73486118,0.00052449,14]
[342965400,1732231834243,-1405.633441,0.00052451,14]
[342965401,1732231834252,-3895.77653959,0.00052454,14]
[342965402,1732231834261,-1333.09670045,0.00052454,14]
[342965403,1732231834271,-847.14606483,0.00052455,14]
[342965404,1732231834280,-150.0,0.00052455,120]
[342965405,1732231834290,-341.26764405,0.00052465,14]
[342965406,1732231834299,-819.47530794,0.00052465,14]
[342965407,1732231834308,-32283.88308419,0.00052476,14]
[342965408,1732231834318,-226.58066233,0.00052477,14]
[342965409,1732231834327,-533.93616123,0.0005248,14]
[342965410,1732231834338,-819.47530794,0.0005248,14]
[342965411,1732231834348,-550.8575457,0.00052482,14]
[342965412,1732231834357,-847.14606483,0.00052483,14]
[342965413,1732231834366,-533.93616123,0.00052485,14]
[342965414,1732231834376,-533.93616123,0.00052487,14]
[342965415,1732231834385,-1405.63344091,0.00052487,14]
[342965416,1732231834395,-1594.85403289,0.00052487,14]
[342965417,1732231834404,-2811.26688178,0.00052489,14]
[342965418,1732231834413,-1581.35061583,0.00052489,14]
[342965419,1732231834422,-7608.52963597,0.00052495,14]
[342965420,1732231834432,-150.112208,0.00052498,120]
[342965421,1732231834441,-2811.26688178,0.00052499,14]
[342965422,1732231834450,-341.26764405,0.000525,14]
[342965423,1732231834459,-150.0,0.000525,101]
[342965424,1732231834469,-2300.0,0.000525,19]
[342965425,1732231834478,-726.75,0.00052516,2]
[342965426,1732231834487,-150.0,0.00052555,120]
[342965427,1732231834497,-150.112208,0.00052598,120]
[342965428,1732231834507,-1000.0,0.00052599,30]
[342965429,1732231834516,-3500.0,0.000526,19]
[342965430,1732231834525,-166.99,0.00052603,2]
[342965431,1732231834535,-901.89,0.00052653,120]
[342965432,1732231834544,-1908.333587,0.0005268,25]
[342965433,1732231834554,-157.112208,0.00052698,120]
[342965434,1732231834563,-1000.0,0.00052699,30]
[342965435,1732231834572,-4700.0,0.000527,19]
[342965436,1732231834581,-1000.0,0.000527,25]
[342965437,1732231834594,-1000.0,0.0005272,25]
[342965438,1732231834604,-1000.0,0.0005274,25]
[342965439,1732231834613,-150.112208,0.00052748,120]
[342965440,1732231834622,-1000.0,0.0005276,25]
[342965441,1732231834631,-1000.0,0.0005278,25]
[342965442,1732231834640,-157.112208,0.00052798,120]
[342965443,1732231834649,-1493.72926079,0.000528,110]
[342965444,1732231834658,-5900.0,0.000528,19]
[342965445,1732231834667,-1000.0,0.000528,25]
[342965446,1732231834676,-1000.0,0.0005282,25]
[342965447,1732231834685,-161.35,0.00052825,2]
[342965448,1732231834694,-1000.0,0.0005284,25]
[342965449,1732231834703,-1352.777862,0.0005284,25]
[342965450,1732231834712,-150.112208,0.00052848,120]
[342965451,1732231834721,-1000.0,0.0005286,25]
[342965452,1732231834730,-1000.0,0.0005286,25]
[342965453,1732231834738,-1000.0,0.0005288,25]
[342965454,1732231834747,-1000.0,0.0005288,25]
[342965455,1732231834756,-150.112208,0.00052898,120]
[342965456,1732231834765,-2397.36535582,0.00052899,2]
[342965457,1732231834774,-176.89121324,0.00052899,28]
[342965458,1732231834784,-500.0,0.00052899,21]
[342965459,1732231834793,-157.02,0.000529,120]
[342965460,1732231834802,-150.0,0.000529,120]
[342965461,1732231834811,-3000.0,0.000529,2]
[342965462,1732231834819,-227.32106196,0.000529,120]
[342965463,1732231834828,-158.0,0.000529,66]
[342965464,1732231834839,-1100.0,0.000529,19]
[342965465,1732231834849,-13339.5197,0.000529,120]
[342965466,1732231834858,-1000.0,0.000529,25]
[342965467,1732231834871,-1000.0,0.000529,25]
[342965468,1732231834881,-150.0,0.000529,120]
[342965469,1732231834890,-201.66002026,0.000529,2]
[342965470,1732231834899,-2097.52592637,0.000529,2]
[342965471,1732231834908,-151.112208,0.00052948,120]
[342965472,1732231834917,-642.85,0.00052958,120]
[342965473,1732231834926,-500.0,0.00052958,120]
[342965474,1732231834935,-500.0,0.00052958,120]
[342965475,1732231834945,-500.0,0.00052958,120]
[342965476,1732231834954,-500.0,0.00052958,120]
[342965477,1732231834963,-640.67,0.00052958,120]
[342965478,1732231834974,-500.0,0.00052958,120]
[342965479,1732231834983,-500.0,0.00052958,120]
[342965480,1732231834993,-500.0,0.00052958,120]
[342965481,1732231835002,-500.0,0.00052958,120]
[342965482,1732231835011,-500.0,0.00052958,120]
[342965483,1732231835019,-500.0,0.00052958,120]
[342965484,1732231835030,-500.0,0.00052958,120]
[342965485,1732231835040,-440.817165,0.00052958,7]
[342965486,1732231835050,-397.67714236,0.00052958,120]
[342965487,1732231835060,-500.0,0.00052958,120]
[342965488,1732231835069,-259.10770468,0.00052958,120]
[342965489,1732231835078,-594.91,0.00052958,120]
[342965490,1732231835090,-508.28957228,0.00052958,120]
[342965491,1732231835099,-529.55926549,0.00052958,120]
[342965492,1732231835108,-500.0,0.00052958,120]
[342965493,1732231835117,-500.0,0.00052958,120]
[342965494,1732231835126,-500.0,0.00052958,120]
[342965495,1732231835135,-1079.0,0.00052959,120]
[342965496,1732231835144,-51244.0,0.00052959,120]
[342965497,1732231835153,-166.08,0.0005298,30]
[342965498,1732231835162,-719.17543519,0.00052986,30]
[342965499,1732231835172,-297.73178064,0.00052986,30]
[342965500,1732231835181,-150.0,0.00052986,30]
[342965501,1732231835190,-156.61196887,0.00052986,30]
[342965502,1732231835200,-363.38880276,0.00052986,30]
[342965503,1732231835208,-150.0,0.00052986,30]
[342965504,1732231835217,-279.74102015,0.00052986,30]
[342965505,1732231835227,-150.0,0.00052986,30]
[342965506,1732231835236,-150.0,0.00052986,30]
[342965507,1732231835245,-150.0,0.00052986,30]
[342965508,1732231835255,-154.43758398,0.00052986,30]
[342965509,1732231835264,-167.38715384,0.00052986,30]
[342965510,1732231835273,-150.0,0.00052986,30]
[342965511,1732231835281,-150.0,0.00052986,30]
[342965512,1732231835291,-150.0,0.00052986,30]
[342965513,1732231835300,-150.5,0.0005299,30]
[342965514,1732231835309,-267.1729155,0.00052996,2]
[342965515,1732231835319,-595.8248026,0.00052996,2]
[342965516,1732231835328,-2822.0183881,0.00052996,2]
[342965517,1732231835339,-564.4036776,0.00052996,2]
[342965518,1732231835348,-150.112208,0.00052998,120]
[342965519,1732231835358,-1000.0,0.00052999,120]
[342965520,1732231835368,-500.0,0.00052999,120]
[342965521,1732231835377,-500.0,0.00052999,120]
[342965522,1732231835387,-500.0,0.00052999,120]
[342965523,1732231835396,-510.65,0.00052999,120]
[342965524,1732231835406,-500.0,0.00052999,120]
[342965525,1732231835415,-500.0,0.00052999,120]
[342965526,1732231835424,-500.0,0.00052999,120]
[342965527,1732231835433,-465.93473987,0.00052999,120]
[342965528,1732231835443,-500.0,0.00052999,120]
[342965529,1732231835452,-500.0,0.00052999,120]
[342965530,1732231835462,-563.99739628,0.00052999,120]
[342965531,1732231835471,-500.0,0.00052999,120]
[342965532,1732231835480,-203.1941307,0.00052999,120]
[342965533,1732231835490,-500.0,0.00052999,120]
[342965534,1732231835499,-500.0,0.00052999,120]
[342965535,1732231835509,-500.0,0.00052999,120]
[342965536,1732231835518,-500.0,0.00052999,120]
[342965537,1732231835528,-539.03,0.00052999,120]
[342965538,1732231835537,-500.0,0.00052999,120]
[342965539,1732231835546,-500.0,0.00052999,120]
[342965540,1732231835555,-500.0,0.00052999,120]
[342965541,1732231835564,-500.0,0.00052999,120]
[342965542,1732231835574,-500.0,0.00052999,120]
[342965543,1732231835584,-500.0,0.00052999,120]
[342965544,1732231835594,-500.0,0.00052999,120]
[342965545,1732231835603,-500.0,0.00052999,120]
[342965546,1732231835612,-500.0,0.00052999,120]
[342965547,1732231835622,-500.0,0.00052999,120]
[342965548,1732231835631,-500.0,0.00052999,120]
[342965549,1732231835640,-500.0,0.00052999,120]
[342965550,1732231835649,-500.0,0.00052999,120]
[342965551,1732231835658,-500.0,0.00052999,120]
[342965552,1732231835667,-500.0,0.00052999,120]
[342965553,1732231835676,-500.0,0.00052999,120]
[342965554,1732231835685,-500.0,0.00052999,120]
[342965555,1732231835694,-500.0,0.00052999,120]
[342965556,1732231835704,-500.0,0.00052999,120]
[342965557,1732231835713,-500.0,0.00052999,120]
[342965558,1732231835722,-500.0,0.00052999,120]
[342965559,1732231835731,-500.0,0.00052999,120]
[342965560,1732231835741,-500.0,0.00052999,120]
[342965561,1732231835751,-522.42113266,0.00052999,120]
[342965562,1732231835760,-500.0,0.00052999,120]
[342965563,1732231835769,-500.0,0.00052999,120]
[342965564,1732231835778,-500.0,0.00052999,120]
[342965565,1732231835788,-502.36745851,0.00052999,120]
[342965566,1732231835797,-500.0,0.00052999,120]
[342965567,1732231835807,-1000.0,0.00052999,120]
[342965568,1732231835816,-500.0,0.00052999,120]
[342965569,1732231835825,-500.0,0.00052999,120]
[342965570,1732231835836,-643.67,0.00052999,120]
[342965571,1732231835845,-500.0,0.00052999,120]
[342965572,1732231835854,-500.0,0.00052999,120]
[342965573,1732231835866,-500.0,0.00052999,120]
[342965574,1732231835875,-936.95,0.00052999,120]
[342965575,1732231835884,-4014.06923438,0.00053,120]
[342965576,1732231835895,-318575.29795453,0.00053,36]
[342965577,1732231835905,-885.03874115,0.00053,61]
[342965578,1732231835915,-4387490.57028327,0.00053,120]
[342965579,1732231835958,-500.0,0.0004894,11]
[342965580,1732231835967,-9662.86901403,0.00053,120]
[342965581,1732231835979,-882.59318353,0.00053,120]
[342965582,1732231835991,-1130693.4053621,0.00053,120]
[342965583,1732231836005,-50505.23941159,0.00053,120]
[342965584,1732231836023,-10238.03374005,0.00053,120]
[342965585,1732231836034,-4116.25523319,0.00053,120]
[342965588,1732231838127,-235.0963381,0.00038,120]
[342965589,1732231838136,-500.0,0.0004519,120]
[342965590,1732231838145,-629.0,0.0004594,2]
[342965591,1732231838155,-1093.0,0.0004594,2]
[342965592,1732231838164,-738.08478569,0.00046567,15]
[342965593,1732231838174,-1659.55224223,0.00048789,15]
[342965594,1732231838183,-629.0,0.0004894,2]
[342965595,1732231838192,-1093.0,0.0004894,2]
[342965596,1732231838201,-195.28288089,0.0005194,120]
[342965597,1732231838273,-150.0,0.0004594,2]
[342965598,1732231838282,-433.71711911,0.0005194,120]
[342965599,1732231838291,-302.86802802,0.000527,2]
[342965600,1732231838300,-607.30018752,0.00052999,120]
[342965601,1732231838309,-322.29266035,0.00053,120]
[342965602,1732231838324,-474.86048263,0.0004894,11]
[342965603,1732231838482,-500.0,0.00045781,2]
[342965604,1732231838491,-25.13951737,0.0004894,11]
[342965605,1732231838500,-782.86048263,0.00053,120]
[342965606,1732231838512,-778633.99771752,0.00053,120]
[342965607,1732231838521,-4265.6752425,0.00053,120]
[342965608,1732231838530,-381.77771521,0.00053,30]
[342965609,1732231838538,-10000.0,0.00053,120]
[342965610,1732231838548,-3347.23809096,0.00053,120]
[342965611,1732231838557,-150.0,0.00053,102]
[342965612,1732231838566,-1000.0,0.00053,120]
[342965613,1732231838575,-2000.0,0.00053,120]
[342965614,1732231838588,-2000.0,0.00053,120]
[342965615,1732231838597,-2000.0,0.00053,120]
[342965616,1732231838607,-2000.0,0.00053,120]
[342965617,1732231838616,-2000.0,0.00053,120]
[342965618,1732231838626,-2000.0,0.00053,120]
[342965619,1732231838635,-2000.0,0.00053,120]
[342965620,1732231838645,-2000.0,0.00053,120]
[342965621,1732231838654,-2000.0,0.00053,120]
[342965622,1732231838663,-2000.0,0.00053,120]
[342965623,1732231838674,-3000.0,0.00053,5]
[342965624,1732231838683,-1766.89278258,0.00053,30]
[342965625,1732231838692,-154.077,0.00053,30]
[342965637,1732231838834,-719.17543519,0.00053004,30]
[342965638,1732231838847,-297.73178064,0.00053004,30]
[342965639,1732231838856,-363.38880276,0.00053004,30]
[342965640,1732231838869,-150.0,0.00053012,30]
[342965641,1732231838878,-719.17543519,0.00053021,30]
[342965642,1732231838887,-297.73178064,0.00053021,30]
[342965643,1732231838896,-363.38880276,0.00053021,30]
[342965644,1732231838907,-150.0,0.00053021,30]
[342965645,1732231838916,-150.0,0.00053033,30]
[342965646,1732231838926,-150.0,0.00053036,120]
[342965647,1732231838935,-719.17543519,0.00053038,30]
[342965648,1732231838944,-297.73178064,0.00053038,30]
[342965649,1732231838953,-363.38880276,0.00053038,30]
[342965650,1732231838963,-150.0,0.00053038,30]
[342965651,1732231838972,-719.17543519,0.00053056,30]
[342965652,1732231838981,-297.73178064,0.00053056,30]
[342965653,1732231838990,-363.38880276,0.00053056,30]
[342965654,1732231838999,-150.0,0.00053056,30]
[342965655,1732231839009,-150.0,0.00053064,30]
[342965656,1732231839018,-719.17543519,0.00053073,30]
[342965657,1732231839028,-297.73178064,0.00053073,30]
[342965658,1732231839037,-363.38880276,0.00053073,30]
[342965659,1732231839047,-150.0,0.00053079,30]
[342965660,1732231839055,-719.17543519,0.0005309,30]
[342965661,1732231839064,-297.73178064,0.0005309,30]
[342965662,1732231839073,-363.38880276,0.0005309,30]
[342965663,1732231839082,-150.0,0.0005309,30]
[342965664,1732231839093,-150.0,0.00053091,30]
[342965665,1732231839103,-719.17543519,0.00053107,30]
[342965666,1732231839111,-297.73178064,0.00053107,30]
[342965667,1732231839121,-363.38880276,0.00053107,30]
[342965668,1732231839130,-150.0,0.00053116,30]
[342965669,1732231839139,-719.17543519,0.00053125,30]
[342965670,1732231839148,-297.73178064,0.00053125,30]
[342965671,1732231839157,-363.38880276,0.00053125,30]
[342965672,1732231839166,-150.0,0.00053125,30]
[342965673,1732231839176,-150.0,0.00053126,30]
[342965674,1732231839185,-500.0,0.00053136,120]
[342965675,1732231839194,-719.17543519,0.00053142,30]
[342965676,1732231839203,-297.73178064,0.00053142,30]
[342965677,1732231839212,-363.38880276,0.00053142,30]
[342965678,1732231839221,-150.0,0.00053142,30]
[342965679,1732231839230,-719.17543519,0.00053159,30]
[342965680,1732231839240,-297.73178064,0.00053159,30]
[342965681,1732231839249,-363.38880276,0.00053159,30]
[342965682,1732231839259,-150.0,0.00053161,30]
[342965683,1732231839268,-150.0,0.00053168,30]
[342965684,1732231839278,-150.0,0.00053172,30]
[342965685,1732231839287,-482.97201874,0.00053173,21]
[342965686,1732231839297,-719.17543519,0.00053177,30]
[342965687,1732231839307,-297.73178064,0.00053177,30]
[342965688,1732231839316,-363.38880276,0.00053177,30]
[342965689,1732231839325,-150.0,0.00053177,30]
[342965690,1732231839335,-719.17543519,0.00053194,30]
[342965691,1732231839346,-297.73178064,0.00053194,30]
[342965692,1732231839355,-363.38880276,0.00053194,30]
[342965693,1732231839364,-150.0,0.00053194,30]
[342965694,1732231839374,-150.0,0.00053196,30]
[342965695,1732231839383,-151.112205,0.00053198,120]
[342965696,1732231839392,-719.17543519,0.00053211,30]
[342965697,1732231839404,-297.73178064,0.00053211,30]
[342965698,1732231839414,-363.38880276,0.00053211,30]
[342965699,1732231839425,-150.0,0.00053218,30]
[342965700,1732231839435,-150.0,0.0005322,30]
[342965701,1732231839445,-719.17543519,0.00053229,30]
[342965702,1732231839454,-297.73178064,0.00053229,30]
[342965703,1732231839463,-363.38880276,0.00053229,30]
[342965704,1732231839473,-150.0,0.00053231,30]
[342965705,1732231839483,-500.0,0.00053232,120]
[342965706,1732231839493,-500.0,0.00053232,120]
[342965707,1732231839503,-500.0,0.00053232,120]
[342965708,1732231839512,-500.0,0.00053232,120]
[342965709,1732231839521,-500.0,0.00053232,120]
[342965710,1732231839530,-500.0,0.00053232,120]
[342965711,1732231839539,-719.17543519,0.00053246,30]
[342965712,1732231839548,-297.73178064,0.00053246,30]
[342965713,1732231839557,-363.38880276,0.00053246,30]
[342965714,1732231839566,-150.0,0.00053246,30]
[342965715,1732231839576,-274.0,0.0005325,30]
[342965716,1732231839585,-274.0,0.0005325,30]
[342965717,1732231839596,-274.0,0.0005325,30]
[342965718,1732231839605,-719.17543519,0.00053263,30]
[342965719,1732231839614,-297.73178064,0.00053263,30]
[342965720,1732231839623,-363.38880276,0.00053263,30]
[342965721,1732231839632,-150.0,0.00053264,30]
[342965722,1732231839641,-150.0,0.00053266,30]
[342965723,1732231839652,-150.0,0.00053272,30]
[342965724,1732231839662,-500.0,0.00053273,120]
[342965725,1732231839671,-542.0806193,0.00053273,120]
[342965726,1732231839680,-500.0,0.00053273,120]
[342965727,1732231839689,-500.0,0.00053273,120]
[342965728,1732231839698,-316.79,0.00053273,120]
[342965729,1732231839707,-390.13,0.00053273,120]
[342965730,1732231839718,-500.0,0.00053273,120]
[342965731,1732231839727,-500.0,0.00053273,120]
[342965732,1732231839737,-500.0,0.00053273,120]
[342965733,1732231839746,-500.0,0.00053273,120]
[342965734,1732231839756,-1000.0,0.00053273,120]
[342965735,1732231839765,-500.0,0.00053273,120]
[342965736,1732231839774,-719.17543519,0.00053281,30]
[342965737,1732231839783,-297.73178064,0.00053281,30]
[342965738,1732231839792,-363.38880276,0.00053281,30]
[342965739,1732231839801,-719.17543519,0.00053298,30]
[342965740,1732231839810,-297.73178064,0.00053298,30]
[342965741,1732231839819,-363.38880276,0.00053298,30]
[342965742,1732231839828,-150.0,0.00053298,30]
[342965743,1732231839841,-150.0,0.00053301,30]
[342965744,1732231839850,-150.0,0.00053311,30]
[342965745,1732231839859,-719.17543519,0.00053315,30]
[342965746,1732231839871,-297.73178064,0.00053315,30]
[342965747,1732231839880,-363.38880276,0.00053315,30]
[342965748,1732231839889,-150.0,0.00053324,30]
[342965749,1732231839898,-719.17543519,0.00053333,30]
[342965750,1732231839907,-297.73178064,0.00053333,30]
[342965751,1732231839919,-363.38880276,0.00053333,30]
[342965752,1732231839928,-150.0,0.00053336,30]
[342965753,1732231839939,-719.17543519,0.0005335,30]
[342965754,1732231839950,-297.73178064,0.0005335,30]
[342965755,1732231839959,-363.38880276,0.0005335,30]
[342965756,1732231839969,-150.0,0.0005335,30]
[342965757,1732231839979,-150.0,0.00053357,30]
[342965758,1732231839989,-719.17543519,0.00053367,30]
[342965759,1732231839998,-297.73178064,0.00053367,30]
[342965760,1732231840007,-363.38880276,0.00053367,30]
[342965761,1732231840016,-150.0,0.00053367,30]
[342965762,1732231840027,-150.0,0.00053371,30]
[342965763,1732231840037,-150.0,0.00053376,30]
[342965764,1732231840046,-719.17543519,0.00053384,30]
[342965765,1732231840055,-297.73178064,0.00053384,30]